Workbook

Sheet Cover page

Sheet Versions
A2: Version | B2: Date | C2: Description
A3: v.1 | B3: 2018-03-31 | C3: Draft submitted to the AER for approval

Sheet SCS charges 2018-20
A1: 2018/19 to 2019/20 SCS tariff charges
A2: Tariff Class | B2: Tariff | C2: Year | D2: Tariff / Charge Element | E2: Unit | F2: DUOS | G2: JURI | H2: DPPC | I2: NUOS
A3: CAC | C3: 2018-19 | D3: Supply | E3: $/day | F3: Site-specific prices are confidential
B4: 3000 | D4: Demand | E4: $/kVA/month | F4: 9.651 | G4: 0 | H4: 1.392 | I4: =SUM(F4:H4) -> 11.043
B5: EG 11kV | D5: Volume Off-Peak | E5: c/kWh | F5: 0.393 | G5: 0 | H5: 0.156 | I5: =SUM(F5:H5) -> 0.549
D6: Volume Peak | E6: c/kWh | F6: 0.393 | G6: 0 | H6: 0.156 | I6: 0.549
C7: 2019-20 | D7: Supply | E7: $/day | F7: Site-specific prices are confidential
D8: Demand | E8: $/kVA/month | F8: 9.515 | G8: 0 | H8: 1.462 | I8: =SUM(F8:H8) -> 10.977
D9: Volume Off-Peak | E9: c/kWh | F9: 0.685 | G9: 0 | H9: 0.132 | I9: 0.817
D10: Volume Peak | E10: c/kWh | F10: 0.685 | G10: 0 | H10: 0.132 | I10: 0.817
C11: 2018-19 | D11: Supply | E11: $/day | F11: Site-specific prices are confidential
B12: 4000 | D12: Demand | E12: $/kVA/month | F12: 6.684 | G12: 0 | H12: 1.392 | I12: =SUM(F12:H12) -> 8.076
B13: 11kV Bus | D13: Volume Off-Peak | E13: c/kWh | F13: 0.044 | G13: 0 | H13: 0.069 | I13: 0.113
D14: Volume Peak | E14: c/kWh | F14: 0.044 | G14: 0 | H14: 0.069 | I14: 0.113
C15: 2019-20 | D15: Supply | E15: $/day | F15: Site-specific prices are confidential
D16: Demand | E16: $/kVA/month | F16: 6.269 | G16: 0 | H16: 1.462 | I16: =SUM(F16:H16) -> 7.731
D17: Volume Off-Peak | E17: c/kWh | F17: 0 | G17: 0 | H17: 0.073 | I17: 0.073
D18: Volume Peak | E18: c/kWh | F18: 0 | G18: 0 | H18: 0.073 | I18: 0.073
C19: 2018-19 | D19: Supply | E19: $/day | F19: Site-specific prices are confidential
B20: 4500 | D20: Demand | E20: $/kVA/month | F20: 10.342 | G20: 0 | H20: 1.392 | I20: 11.734
B21: 11kV Line | D21: Volume Off-Peak | E21: c/kWh | F21: 0.393 | G21: 0 | H21: 0.156 | I21: 0.549
D22: Volume Peak | E22: c/kWh | F22: 0.393 | G22: 0 | H22: 0.156 | I22: 0.549
C23: 2019-20 | D23: Supply | E23: $/day | F23: Site-specific prices are confidential
D24: Demand | E24: $/kVA/month | F24: 9.515 | G24: 0 | H24: 1.462 | I24: 10.977
D25: Volume Off-Peak | E25: c/kWh | F25: 0.685 | G25: 0 | H25: 0.132 | I25: 0.817
D26: Volume Peak | E26: c/kWh | F26: 0.685 | G26: 0 | H26: 0.132 | I26: 0.817
C27: 2018-19 | D27: Supply - CAV | E27: $/day/$M-CAV | F27: 30.428 | G27: 0 | H27: 0 | I27: 30.428
B28: 7400 | D28: Supply - NCCAV | E28: $/day/$M-NCCAV | F28: 68.441 | G28: 0 | H28: 0 | I28: 68.441
B29: HV ToU Demand | D29: Peak Demand | E29: $/kVA/month | F29: 8.271 | G29: 0 | H29: 2.804 | I29: 11.075
D30: Excess Demand | E30: $/kVA/month | F30: 1.654 | G30: 0 | H30: 0.561 | I30: 2.215
D31: Volume Flat | E31: c/kWh | F31: 0.926 | G31: 0 | H31: 0.409 | I31: 1.335
C32: 2019-20 | D32: Supply - CAV | E32: $/day/$M-CAV | F32: 31.341 | G32: 0 | H32: 0 | I32: 31.341
D33: Supply - NCCAV | E33: $/day/$M-NCCAV | F33: 70.495 | G33: 0 | H33: 0 | I33: 70.495
D34: Peak Demand | E34: $/kVA/month | F34: 8.429 | G34: 0 | H34: 2.858 | I34: 11.287
D35: Excess Demand | E35: $/kVA/month | F35: 1.686 | G35: 0 | H35: 0.572 | I35: 2.258
D36: Volume Flat | E36: c/kWh | F36: 0.995 | G36: 0 | H36: 0.44 | I36: 1.435
B37: 8000 | C37: 2018-19 | D37: Supply | E37: $/day | F37: 24.78 | G37: 0 | H37: 20.87 | I37: 45.65
B38: HV Demand | D38: Demand | E38: $/kVA/month | F38: 9.869 | G38: 0 | H38: 2.63 | I38: 12.499
D39: Volume Flat | E39: c/kWh | F39: 0.393 | G39: 0 | H39: 0.356 | I39: 0.749
C40: 2019-20 | D40: Supply | E40: $/day | F40: 26.313 | G40: 0 | H40: 21.269 | I40: 47.582
D41: Demand | E41: $/kVA/month | F41: 9.08 | G41: 0 | H41: 2.762 | I41: 11.842
D42: Volume Flat | E42: c/kWh | F42: 0.685 | G42: 0 | H42: 0.232 | I42: 0.917
B43: 8100 | C43: 2018-19 | D43: Supply | E43: $/day | F43: 28.354 | G43: 0 | H43: 5.407 | I43: 33.761
B44: Demand Large | D44: Demand | E44: $/kVA/month | F44: 13.898 | G44: 0 | H44: 2.717 | I44: 16.615
D45: Volume Flat | E45: c/kWh | F45: 0.213 | G45: 0 | H45: 0.159 | I45: 0.372
C46: 2019-20 | D46: Supply | E46: $/day | F46: 28.895 | G46: 0 | H46: 5.51 | I46: 34.405
D47: Demand | E47: $/kVA/month | F47: 13.034 | G47: 0 | H47: 2.769 | I47: 15.803
D48: Volume Flat | E48: c/kWh | F48: 0.407 | G48: 0 | H48: 0.175 | I48: 0.582
B49: 8300 | C49: 2018-19 | D49: Supply | E49: $/day | F49: 3.204 | G49: 0 | H49: 1.315 | I49: 4.519
B50: Demand Small | D50: Demand | E50: $/kVA/month | F50: 15.54 | G50: 0 | H50: 2.629 | I50: 18.169
D51: Volume Flat | E51: c/kWh | F51: 0 | G51: 0 | H51: 0.392 | I51: 0.392
C52: 2019-20 | D52: Supply | E52: $/day | F52: 3.265 | G52: 0 | H52: 1.34 | I52: 4.605
D53: Demand | E53: $/kVA/month | F53: 14.556 | G53: 0 | H53: 2.679 | I53: 17.235
D54: Volume Flat | E54: c/kWh | F54: 0.021 | G54: 0 | H54: 0.418 | I54: 0.439
C55: 2018-19 | D55: Supply | E55: $/day | F55: 4.261 | G55: 0 | H55: 0 | I55: 4.261
B56: 7200 | D56: Peak Demand | E56: $/kVA/month | F56: 8.416 | G56: 0 | H56: 2.717 | I56: 11.133
B57: Demand ToU LV | D57: Excess Demand | E57: $/kVA/month | F57: 1.683 | G57: 0 | H57: 0.543 | I57: 2.226
D58: Volume Flat | E58: c/kWh | F58: 2.476 | G58: 0 | H58: 0.459 | I58: 2.935
C59: 2019-20 | D59: Supply | E59: $/day | F59: 4.34 | G59: 0 | H59: 0 | I59: 4.34
D60: Peak Demand | E60: $/kVA/month | F60: 8.577 | G60: 0 | H60: 2.769 | I60: 11.346
D61: Excess Demand | E61: $/kVA/month | F61: 1.715 | G61: 0 | H61: 0.554 | I61: 2.269
D62: Volume Flat | E62: c/kWh | F62: 2.21 | G62: 0 | H62: 0.488 | I62: 2.698
B63: 8500 | C63: 2018-19 | D63: Supply | E63: $/Day | F63: 0.466 | G63: 0 | H63: 0.185 | I63: 0.651
B64: Business Flat | D64: Volume Flat | E64: c/kWh | F64: 8.066 | G64: 0 | H64: 1.034 | I64: 9.1
C65: 2019-20 | D65: Supply | E65: $/Day | F65: 0.475 | G65: 0 | H65: 0.189 | I65: 0.664
D66: Volume Flat | E66: c/kWh | F66: 7.579 | G66: 0 | H66: 1.15 | I66: 8.729
B67: 8800 | C67: 2018-19 | D67: Supply | E67: $/day | F67: 0.466 | G67: 0 | H67: 0.185 | I67: 0.651
B68: Business ToU | D68: Volume Off-Peak | E68: c/kWh | F68: 6.187 | G68: 0 | H68: 0.758 | I68: 6.945
D69: Volume Peak | E69: c/kWh | F69: 9.79 | G69: 0 | H69: 1.302 | I69: 11.092
C70: 2019-20 | D70: Supply | E70: $/day | F70: 0.475 | G70: 0 | H70: 0.189 | I70: 0.664
D71: Volume Off-Peak | E71: c/kWh | F71: 5.838 | G71: 0 | H71: 0.781 | I71: 6.619
D72: Volume Peak | E72: c/kWh | F72: 9.261 | G72: 0 | H72: 1.506 | I72: 10.767
B73: 7100 | C73: 2018-19 | D73: Supply | E73: $/day | F73: 0.439 | G73: 0 | H73: 0 | I73: 0.439
B74: Business Demand | D74: Demand | E74: $/kW/month | F74: 6.552 | G74: 0 | H74: 2.159 | I74: 8.711
D75: Volume Flat | E75: c/kWh | F75: 4.109 | G75: 0 | H75: 0.102 | I75: 4.211
C76: 2019-20 | D76: Supply | E76: $/day | F76: 0.448 | G76: 0 | H76: 0 | I76: 0.448
D77: Demand | E77: $/kW/month | F77: 6.677 | G77: 0 | H77: 2.201 | I77: 8.878
D78: Volume Flat | E78: c/kWh | F78: 3.554 | G78: 0 | H78: 0.2 | I78: 3.754
B79: 8400 | C79: 2018-19 | D79: Supply | E79: $/day | F79: 0.414 | G79: 0 | H79: 0.066 | I79: 0.48
B80: Residential Flat | D80: Volume Flat | E80: c/kWh | F80: 7.086 | G80: 0 | H80: 1.342 | I80: =SUM(F80:H80) -> 8.428
C81: 2019-20 | D81: Supply | E81: $/day | F81: 0.422 | G81: 0 | H81: 0.067 | I81: 0.489
D82: Volume Flat | E82: c/kWh | F82: 6.97 | G82: 0 | H82: 1.442 | I82: 8.412
B83: 8900 | C83: 2018-19 | D83: Supply | E83: $/day | F83: 0.414 | G83: 0 | H83: 0.066 | I83: 0.48
B84: Residential ToU | D84: Volume Off-Peak | E84: c/kWh | F84: 5.589 | G84: 0 | H84: 0.216 | I84: 5.805
D85: Volume Shoulder | E85: c/kWh | F85: 6.086 | G85: 0 | H85: 1.342 | I85: 7.428
D86: Volume Peak | E86: c/kWh | F86: 12.706 | G86: 0 | H86: 3.775 | I86: 16.481
C87: 2019-20 | D87: Supply | E87: $/day | F87: 0.422 | G87: 0 | H87: 0.067 | I87: 0.489
D88: Volume Off-Peak | E88: c/kWh | F88: 5.739 | G88: 0 | H88: 0.295 | I88: 6.034
D89: Volume Shoulder | E89: c/kWh | F89: 5.97 | G89: 0 | H89: 1.442 | I89: 7.412
D90: Volume Peak | E90: c/kWh | F90: 12.868 | G90: 0 | H90: 3.922 | I90: 16.79
B91: 7000 | C91: 2018-19 | D91: Supply | E91: $/day | F91: 0.38 | G91: 0 | H91: 0 | I91: 0.38
B92: Residential Demand | D92: Demand | E92: $/kW/month | F92: 6.084 | G92: 0 | H92: 1.604 | I92: 7.688
D93: Volume Flat | E93: c/kWh | F93: 2.269 | G93: 0 | H93: 0.472 | I93: 2.741
C94: 2019-20 | D94: Supply | E94: $/day | F94: 0.389 | G94: 0 | H94: 0 | I94: 0.389
D95: Demand | E95: $/kW/month | F95: 6.2 | G95: 0 | H95: 1.226 | I95: 7.426
D96: Volume Flat | E96: c/kWh | F96: 1.984 | G96: 0 | H96: 0.872 | I96: 2.856
C97: 2018-19 | D97: Supply Band 1 | E97: $/month | F97: 22.264 | G97: 0 | H97: 2.01 | I97: 24.274
D98: Supply Band 2 | E98: $/month | F98: 29.084 | G98: 0 | H98: 2.01 | I98: 31.094
D99: Supply Band 3 | E99: $/month | F99: 35.904 | G99: 0 | H99: 2.01 | I99: 37.914
D100: Supply Band 4 | E100: $/month | F100: 42.724 | G100: 0 | H100: 2.01 | I100: 44.734
D101: Supply Band 5 | E101: $/month | F101: 49.544 | G101: 0 | H101: 2.01 | I101: 51.554
B102: 6400 | D102: Top Up | E102: $/kWh/mth | F102: 3.601 | G102: 0 | H102: 0 | I102: 3.601
B103: Residential Lifestyle Package | D103: Volume Flat | E103: c/kWh | F103: 1.606 | G103: 0 | H103: 1.348 | I103: 2.954
C104: 2019-20 | D104: Supply Band 1 | E104: $/month | F104: 21.444 | G104: 0 | H104: 2.04 | I104: 23.484
D105: Supply Band 2 | E105: $/month | F105: 28.394 | G105: 0 | H105: 2.04 | I105: 30.434
D106: Supply Band 3 | E106: $/month | F106: 35.344 | G106: 0 | H106: 2.04 | I106: 37.384
D107: Supply Band 4 | E107: $/month | F107: 42.294 | G107: 0 | H107: 2.04 | I107: 44.334
D108: Supply Band 5 | E108: $/month | F108: 49.244 | G108: 0 | H108: 2.04 | I108: 51.284
D109: Top Up | E109: $/kWh/mth | F109: 3.67 | G109: 0 | H109: 0 | I109: 3.67
D110: Volume Flat | E110: c/kWh | F110: 1.56 | G110: 0 | H110: 1.392 | I110: 2.952
B111: 9000 | C111: 2018-19 | D111: Volume Flat | E111: c/kWh | F111: 4.648 | G111: 0 | H111: 1.067 | I111: =SUM(F111:H111) -> 5.715
B112: Super Economy | C112: 2019-20 | D112: Volume Flat | E112: c/kWh | F112: 4.914 | G112: 0 | H112: 1.162 | I112: 6.076
B113: 9100 | C113: 2018-19 | D113: Volume Flat | E113: c/kWh | F113: 5.896 | G113: 0 | H113: 1.067 | I113: 6.963
B114: Economy | C114: 2019-20 | D114: Volume Flat | E114: c/kWh | F114: 5.229 | G114: 0 | H114: 1.162 | I114: 6.391
B115: 7300 | C115: 2018-19 | D115: Volume Flat | E115: c/kWh | F115: 2.269 | G115: 0 | H115: 0.472 | I115: 2.741
B116: Smart Control | C116: 2019-20 | D116: Volume Flat | E116: c/kWh | F116: 1.984 | G116: 0 | H116: 0.872 | I116: 2.856
B117: 9600 | C117: 2018-19 | D117: Volume Flat | E117: c/kWh | F117: 6.141 | G117: 0 | H117: 1.134 | I117: 7.275
B118: Unmetered | C118: 2019-20 | D118: Volume Flat | E118: c/kWh | F118: 5.496 | G118: 0 | H118: 1.115 | I118: 6.611

Sheet Price capped services 2018- 20
A2: 2018-19 Price Capped Services
G3: CPI | H3: 0.01909090909 | I3: Escalation rate
G4: X | H4: -0.0091 | I4: =(1+H3)*(1-H4)-1 -> 0.02836463636
A5: CATEGORY | B5: SERVICE DESCRIPTION | C5: CHARGE TYPE | D5: PEACE CHARGE CODE | E5: Product Code | F5: PERMUTATIONS | G5: 2018-19 ($/service) excluding GST1 | H5: 2019-20 ($/service) excluding GST1
A6: Connections
A7: Pre-Connection Services
A8: Connection Applications Services
A9: Application assessment, design review and audit real estate development (sub-division) connection services - resubmission | B9: Design Assessment and Preparation of Offer - Resubmission. | C9: Price Cap | D9: Charged Directly to Customer | G9: 173.8844082 | H9: =G9*(1+$I$4) -> 178.8165762
A10: Negotiation services involved in negotiating a connection agreement - simple | B10: Standard jobs for Small Customer Connections and Real Estate Developments (sub-divisions). If service is non-standard, a quoted price may apply. | C10: Price Cap | D10: Charged Directly to Customer | G10: 1623.489326 | H10: =G10*(1+$I$4) -> 1669.539011
A11: Protection and Power Quality assessment prior to connection - simple | B11: Solar PV 30-150kW | C11: Price Cap | D11: Charged Directly to Customer | G11: 4058.733584 | H11: 4173.858086
A12: Pre-Connection Consultation Services
A13: Site inspection in order to determine nature of connection | B13: Small or large customer connection. | C13: Price Cap | D13: Charged Directly to Customer | G13: 347.7790848 | H13: =G13*(1+$I$4) -> 357.6437121
A14: Provision of site-specific connection information and advice for small or large customer connections. | B14: Protection devices and settings, fault level, network information. | C14: Price Cap | D14: Charged Directly to Customer | G14: 695.5581697 | H14: 715.2874242
A15: Connection Services - Large Customer Connections
A16: Customer request a temporary connection for short term supply (includes metered and unmetered) - Simple | B16: Customer requested temporary connection (short term) and recovery of the temporary builders supply. | C16: Price Cap Sch 8 | D16: 120 | E16: NCT1MB | F16: BUSINESS HOURS - NO CT | G16: 412.77 | H16: =G16*(1+$I$4) -> 424.478071 | I16: Subject to Schedule 8
C17: Price Cap | D17: 124 | E17: NCT1MA | F17: AFTER HOURS - NO CT | G17: 2155.636815 | H17: 2216.780669
C18: Price Cap | D18: 128 | E18: NCT1MT | F18: ANYTIME - NO CT | G18: 2155.636815 | H18: 2216.780669
C19: Price Cap | D19: 125 | E19: NCT1MAT | F19: AFTER HOURS - NO CT - TRAFFIC CONTROL | G19: 3289.13027 | H19: 3382.425254
C20: Price Cap | D20: 129 | E20: NCT1MTT | F20: ANYTIME - NO CT - TRAFFIC CONTROL | G20: 3289.13027 | H20: 3382.425254
C21: Price Cap Sch 8 | D21: 122 | E21: NCT2MB | F21: BUSINESS HOURS - CT | G21: 412.77 | H21: 424.478071 | I21: Limited based on Schedule 8
C22: Price Cap | D22: 126 | E22: NCT2MA | F22: AFTER HOURS - CT | G22: 3727.455753 | H22: 3833.18368
C23: Price Cap | D23: 130 | E23: NCT2MT | F23: ANYTIME - CT | G23: 3727.455753 | H23: 3833.18368
C24: Price Cap | D24: 127 | E24: NCT2MAT | F24: AFTER HOURS - CT - TRAFFIC CONTROL | G24: 4860.949209 | H24: 4998.828265
C25: Price Cap | D25: 131 | E25: NCT2MTT | F25: ANYTIME - CT - TRAFFIC CONTROL | G25: 4860.949209 | H25: 4998.828265
B26: Temporary Connection of unmetered equipment to an existing LV supply. | C26: Price Cap Sch 8 | D26: 1400 | E26: TUMS | G26: 277.3175985 | H26: 285.1836114 | I26: Subject to Schedule 8
A27: Post-connection Services
A28: Supply Abolishment - Simple | B28: Request to de-energise an unmetered supply point. | C28: Price Cap | D28: 328 | E28: DNUMS | G28: 425.8083525 | H28: =G28*(1+$I$4) -> 437.8862516
B29: Retailer requests the Service Provider to abolish supply at a specific connection point (simple). To be used for single dwellings and the community / unit one of multi-unit residential complexes. | C29: Price Cap | D29: 800 | E29: SA1 | F29: BUSINESS HOURS (excl meter removal) | G29: 485.3545721 | H29: 499.1214781
C30: Price Cap | D30: 809 | E30: SA1BHTC | F30: BUSINESS HOURS + TRAFFIC CONTROL (excl meter removal) | G30: 1618.848027 | H30: 1664.766063
A31: 0 | C31: Price Cap | D31: 810 | E31: SA4 | F31: Initial meter removal BUSINESS HOURS (includes travel) | G31: 196.6904358 | H31: 202.2694885
C32: Price Cap | D32: 801 | E32: SA1AH | F32: AFTER HOURS (excl meter removal) | G32: 561.3609728 | H32: 577.2837727
C33: Price Cap | D33: 805 | E33: SA1AHT | F33: AFTER HOURS + TRAFFIC CONTROL (excl meter removal) | G33: 1694.854428 | H33: 1742.928358
C34: Price Cap | D34: 811 | E34: SA4AH | F34: Initial meter removal AFTER HOURS (includes travel) | G34: 280.6856206 | H34: 288.6471662
C35: Price Cap | D35: 806 | E35: SA1AT | F35: ANYTIME (excl meter removal) | G35: 561.3609728 | H35: 577.2837727
C36: Price Cap | D36: 807 | E36: SA1ATT | F36: ANYTIME + TRAFFIC CONTROL (excl meter removal) | G36: 1694.854428 | H36: 1742.928358
A37: 0 | C37: Price Cap | D37: 813 | E37: SA4AT | F37: Initial meter removal ANYTIME (includes travel) | G37: 280.6856206 | H37: 288.6471662
A38: 0 | B38: Retailer requests the Service Provider to abolish supply at a specific connection point (simple). To be used for multi-unit residential complexes for all units after the community / unit one - meter removal (charge per meter) | C38: Price Cap | D38: 803 | E38: SA3 | F38: BUSINESS HOURS (no travel) | G38: 128.498257 | H38: 132.1430634
A39: 0 | B39: 0 | C39: Price Cap | D39: 804 | E39: SA3AH | F39: AFTER HOURS (no travel) | G39: 183.433983 | H39: 188.6370213
A40: 0 | B40: 0 | C40: Price Cap | D40: 808 | E40: SA3AT | F40: ANYTIME (no travel) | G40: 183.433983 | H40: 188.6370213
A41: Rearrange connection assets at customer's request - simple (upgrade from overhead to underground where main connection point is in existance) | B41: Recovery of the overhead service and connection of the consumer mains to the pre-existing pillar for a customer requested conversion of existing overhead service to underground service. | C41: Price Cap | D41: 1004 | E41: MSOHtoUG | F41: BUSINESS HOURS | G41: 259.6252142 | H41: 266.989389
A42: 0 | B42: 0 | C42: Price Cap | D42: 1019 | E42: MSOHtoUGA | F42: AFTER HOURS | G42: 370.5029655 | H42: 381.0121474
A43: 0 | B43: 0 | C43: Price Cap | D43: 1035 | E43: MSOHtoUGT | F43: ANYTIME | G43: 370.5029655 | H43: 381.0121474
A44: Overhead Service Line Replacement at customers request (no material change to load) | B44: Customer requests their existing overhead service to be replaced or relocated, e.g.as a result of point of attachment relocation. No material change to load. | C44: Price Cap | D44: 920 | E44: MSOR1P2 | F44: Single Phase - BUSINESS HOURS | G44: 659.0541499 | H44: 677.7479812
A45: 0 | B45: 0 | C45: Price Cap | D45: 921 | E45: MSOR1P2A | F45: Single Phase - AFTER HOURS | G45: 854.953922 | H45: 879.2043791
A46: 0 | B46: 0 | C46: Price Cap | D46: 923 | E46: MSOR1P2T | F46: Single Phase - ANYTIME | G46: 854.953922 | H46: 879.2043791
A47: 0 | B47: 0 | C47: Price Cap | D47: 559 | E47: MSOR1PHTCB | F47: Single Phase - BUSINESS HOURS + TRAFFIC CONTROL | G47: 1792.547605 | H47: 1843.392566
A48: 0 | B48: 0 | C48: Price Cap | D48: 922 | E48: MSOR1P2AT | F48: Single Phase - AFTER HOURS + TRAFFIC CONTROL | G48: 1988.447377 | H48: 2044.848964
A49: 0 | B49: 0 | C49: Price Cap | D49: 925 | E49: MSOR1P2TT | F49: Single Phase - ANYTIME + TRAFFIC CONTROL | G49: 1988.447377 | H49: 2044.848964
A50: 0 | B50: 0 | C50: Price Cap | D50: 924 | E50: MSOR3P2 | F50: Multi Phase - BUSINESS HOURS | G50: 925.4975552 | H50: 951.7489568
A51: 0 | B51: 0 | C51: Price Cap | D51: 927 | E51: MSOR3P2A | F51: Multi Phase - AFTER HOURS | G51: 1172.821274 | H51: 1206.087923
A52: 0 | B52: 0 | C52: Price Cap | D52: 931 | E52: MSOR3P2T | F52: Multi Phase - ANYTIME | G52: 1172.821274 | H52: 1206.087923
A53: 0 | B53: 0 | C53: Price Cap | D53: 560 | E53: MSORMPHTCB | F53: Multi Phase - BUSINESS HOURS + TRAFFIC CONTROL | G53: 2058.99101 | H53: 2117.393542
A54: 0 | B54: 0 | C54: Price Cap | D54: 929 | E54: MSOR3P2AT | F54: Multi Phase - AFTER HOURS + TRAFFIC CONTROL | G54: 2306.324998 | H54: 2371.743068
A55: 0 | B55: 0 | C55: Price Cap | D55: 933 | E55: MSOR3P2TT | F55: Multi Phase - ANYTIME + TRAFFIC CONTROL | G55: 2306.324998 | H55: 2371.743068
A56: Auditing services – auditing/re-inspection of connection assets after energisation to network - simple | B56: Auditing / re-inspection of connection assets after energisation - real estate development (sub-division) Number of new, modified or recovered sites (i.e. stations numbers excluding street light pits and conduits). | C56: Price Cap | D56: Charged Directly to Customer | F56: 0-6 | G56: 476.8010282 | H56: 490.325316
A57: 0 | B57: 0 | C57: Price Cap | D57: Charged Directly to Customer | F57: 7-30 | G57: 762.8775378 | H57: 784.5162818
A58: 0 | B58: 0 | C58: Price Cap | D58: Charged Directly to Customer | F58: 31-60 | G58: 912.7237153 | H58: 938.6127916
A59: 0 | B59: 0 | C59: Price Cap | D59: Charged Directly to Customer | F59: 61+ | G59: 1017.173473 | H59: 1046.025229
A60: Temporary disconnections and reconnections (which may involve a line drop) - Low Voltage | B60: Temporary LV service disconnection / reconnection (No dismantling). | C60: Price Cap | D60: 902 | E60: MSDNNDB | F60: No Dismantling - BUSINESS HOURS | G60: 372.4026121 | H60: 382.9656768
A61: 0 | B61: 0 | C61: Price Cap | D61: 908 | E61: MSDNNDA | F61: No Dismantling - AFTER HOURS | G61: 531.4287034 | H61: 546.5024854
A62: 0 | B62: 0 | C62: Price Cap | D62: 914 | E62: MSDNNDT | F62: No Dismantling - ANYTIME | G62: 531.4287034 | H62: 546.5024854
A63: 0 | B63: Temporary LV Service Disconnection/Reconnection (Dismantling - drop and re-erect service) | C63: Price Cap | D63: 904 | E63: MSDNPDB | F63: Dismantling - BUSINESS HOURS | G63: 608.4208667 | H63: 625.6785034
A64: 0 | B64: 0 | C64: Price Cap | D64: 910 | E64: MSDNPDA | F64: Dismantling - AFTER HOURS | G64: 868.2411798 | H64: 892.8685251
A65: 0 | B65: 0 | C65: Price Cap | D65: 915 | E65: MSDNPDT | F65: Dismantling - ANYTIME | G65: 868.2411798 | H65: 892.8685251
A66: Customer initiated supply enhancement | B66: Overhead Service Upgrade to Single Phase. | C66: Price Cap | D66: 1008 | E66: MSOU1P2 | F66: Single Phase Upgrade - BUSINESS HOURS | G66: 1087.953279 | H66: 1118.812678
C67: Price Cap | D67: 1009 | E67: MSOU1P1 | F67: Single Phase Upgrade (Fuse Only) - BUSINESS HOURS | G67: 188.8146037 | H67: 194.1702613
B68: 0 | C68: Price Cap | D68: 1053 | E68: MSU1PHAH | F68: Single Phase Upgrade - AFTER HOURS | G68: 1414.96974 | H68: 1455.104842
C69: Price Cap | D69: 1056 | E69: MSOU1P1AH | F69: Single Phase Upgrade (Fuse Only) - AFTER HOURS | G69: 269.4520348 | H69: 277.0949437
B70: 0 | C70: Price Cap | D70: 1055 | E70: MSU1PHTCBH | F70: Single Phase Upgrade - BUSINESS HOURS + TRAFFIC CONTROL | G70: 2221.457002 | H70: 2284.467822
B71: 0 | C71: Price Cap | D71: 1054 | E71: MSU1PHTCAH | F71: Single Phase Upgrade - AFTER HOURS + TRAFFIC CONTROL | G71: 2548.463195 | H71: 2620.749427
B72: Overhead Service Upgrade to Multiphase. | C72: Price Cap | D72: 1014 | E72: MSOU3P1 | F72: Multi Phase Upgrade - BUSINESS HOURS | G72: 1226.114063 | H72: 1260.892342
B73: 0 | C73: Price Cap | D73: 1000 | E73: MSUMPHAH | F73: Multi Phase Upgrade-AFTER HOURS | G73: 1646.079718 | H73: 1692.770171
B74: 0 | C74: Price Cap | D74: 1001 | E74: MSUMPHTC | F74: Multi Phase Upgrade- BUSINESS HOURS - TRAFFIC CONTROL | G74: 2359.607518 | H74: 2426.536927
B75: 0 | C75: Price Cap | D75: 1052 | E75: MSUMPHTCAH | F75: Multi Phase Upgrade - AFTER HOURS - TRAFFIC CONTROL | G75: 2779.573173 | H75: 2858.414756
B76: Underground Service Upgrade. | C76: Price Cap | D76: 1060 | E76: MSUU1PHBH | F76: BUSINESS HOURS - SINGLE PHASE | G76: 133.745389 | H76: 137.5390283
C77: Price Cap | D77: 1061 | E77: MSUU1PHAH | F77: AFTER HOURS - SINGLE PHASE | G77: 190.8580073 | H77: 196.2716253
C78: Price Cap | D78: 1042 | E78: MSUU3P | F78: BUSINESS HOURS - TO MULTIPHASE | G78: 133.7556574 | H78: 137.5495879
C79: Price Cap | D79: 1062 | E79: MSUUMPHAH | F79: AFTER HOURS - TO MULTIPHASE | G79: 190.8580073 | H79: 196.2716253
C80: Price Cap | D80: 1063 | E80: MSUUCTBH | F80: BUSINESS HOURS - TO MULTIPHASE CT Metering | G80: 608.4208667 | H80: 625.6785034
C81: Price Cap | D81: 1064 | E81: MSUUCTAH | F81: AFTER HOURS - TO MULTIPHASE CT Metering | G81: 868.2411798 | H81: 892.8685251
A82: Customer consultation or appointment. | B82: A visit to the customers premise to advise on electrical supply matters, could be for various reasons. | C82: Price Cap | D82: 952 | E82: MSAPWR | F82: Complex (customer requested) | G82: 236.028523 | H82: 242.7233862
C83: Price Cap | D83: 1074 | E83: MCMSAPWR | F83: Complex (Metering Coordinator/provider requested) | G83: 236.028523 | H83: 242.7233862
C84: Price Cap | D84: 953 | E84: MSAPWRS | F84: Simple (customer requested) | G84: 107.5199976 | H84: 110.5697632
A85: 0 | B85: 0 | C85: Price Cap | D85: 1075 | E85: MCMSAPWRS | F85: Simple (Metering Coordinator/provider requested) | G85: 107.5199976 | H85: 110.5697632
A86: Customer requested works to allow customer or contractor to work close | B86: Appointment negotiation and power isolation to allow third party to install contestable metering | C86: Price Cap | D86: 1065 | E86: SSWTI1M1V | F86: 1 man crew - initial visit | G86: 152.4235358 | H86: 156.746974
C87: Price Cap | D87: 1066 | E87: SSWTI1M2V | F87: 1 man crew - subsequent visit | G87: 133.745389 | H87: 137.5390283
C88: Price Cap | D88: 1067 | E88: SSWTI2M1V | F88: 2 man crew - initial visit | G88: 286.1689248 | H88: 294.2860023
A89: 0 | B89: 0 | C89: Price Cap | D89: 1068 | E89: SSWTI2M2V | F89: 2 man crew - subsequent visit | G89: 267.5010464 | H89: 275.0886163
A90: De-energisation | B90: Retailer requested de-energisation of the customer's premises where the de-energisation can be performed at the premise ie by a method other than main switch seal (eg pole, pillar or meter isolation link). | C90: Price Cap Sch 8 | D90: 300 | E90: DNSD1MB | F90: NO CT | G90: 0 | H90: 0 | I90: Subject to Schedule 8
A91: 0 | B91: 0 | C91: Price Cap Sch 8 | D91: 302 | E91: DNSD2MB | F91: CT | G91: 0 | H91: 0 | I91: Subject to Schedule 8
A92: 0 | B92: 0 | C92: Price Cap Sch 8 | D92: 304 | E92: DN$1MB | F92: NON PAYMENT - NO CT | G92: 0 | H92: =G92*(1+$I$4) -> 0 | I92: Subject to Schedule 8
A93: 0 | B93: 0 | C93: Price Cap Sch 8 | D93: 306 | E93: DN$2MB | F93: NON PAYMENT - CT | G93: 0 | H93: 0 | I93: Subject to Schedule 8
A94: 0 | B94: Retailer requested de-energisation (MSS). | C94: Price Cap Sch 8 | D94: 320 | E94: DNS | F94: REASON OTHER THAN NON PAYMENT | G94: 0 | H94: 0 | I94: Subject to Schedule 8
A95: 0 | B95: 0 | C95: Price Cap Sch 8 | D95: 324 | E95: DNS$1MB | F95: NON PAYMENT | G95: 0 | H95: 0 | I95: Subject to Schedule 8
A96: Re-energisation | B96: Retailer requests a re-energisation of the customer's premises where the customer has not paid their electricity account. No visual required. | C96: Price Cap Sch 8 | D96: 200 | E96: RN$1MB | F96: BUSINESS HOURS - NO CT | G96: 46.81345324 | H96: 48.14129982 | I96: Subject to Schedule 8
A97: 0 | B97: 0 | C97: Price Cap Sch 8 | D97: 204 | E97: RN$1MA | F97: AFTER HOURS - NO CT | G97: 71.20080824 | H97: 73.22039327 | I97: Subject to Schedule 8
A98: 0 | B98: 0 | C98: Price Cap Sch 8 | D98: 208 | E98: RN$1MT | F98: ANYTIME - NO CT | G98: 71.20080824 | H98: 73.22039327 | I98: Subject to Schedule 8
A99: 0 | B99: 0 | C99: Price Cap Sch 8 | D99: 202 | E99: RN$2MB | F99: BUSINESS HOURS - CT | G99: 46.81345324 | H99: 48.14129982 | I99: Subject to Schedule 8
A100: 0 | B100: 0 | C100: Price Cap Sch 8 | D100: 206 | E100: RN$2MA | F100: AFTER HOURS - CT | G100: 71.20080824 | H100: 73.22039327 | I100: Subject to Schedule 8
A101: 0 | B101: 0 | C101: Price Cap Sch 8 | D101: 210 | E101: RN$2MT | F101: ANYTIME - CT | G101: 71.20080824 | H101: 73.22039327 | I101: Subject to Schedule 8
A102: 0 | B102: Retailer requests a re-energisation for the customer's premises following a main switch seal (no visual required). | C102: Price Cap Sch 8 | D102: 406 | E102: RNMSS | F102: BUSINESS HOURS | G102: 0 | H102: 0 | I102: Subject to Schedule 8
A103: 0 | B103: 0 | C103: Price Cap Sch 8 | D103: 408 | E103: RNMSSA | F103: AFTER HOURS | G103: 81.00709204 | H103: 83.30482875 | I103: Subject to Schedule 8
A104: 0 | B104: 0 | C104: Price Cap Sch 8 | D104: 410 | E104: RNMSST | F104: ANYTIME | G104: 73.39823728 | H104: 75.48015159 | I104: Subject to Schedule 8
A105: 0 | B105: 0 | C105: Price Cap Sch 8 | D105: 412 | E105: RNS$1MB | F105: BUSINESS HOURS - NON PAYMENT | G105: 46.81345324 | H105: 48.14129982 | I105: Subject to Schedule 8
A106: 0 | B106: 0 | C106: Price Cap Sch 8 | D106: 416 | E106: RNS$1MA | F106: AFTER HOURS - NON PAYMENT | G106: 81.00709204 | H106: 83.30482875 | I106: Subject to Schedule 8
A107: 0 | B107: 0 | C107: Price Cap Sch 8 | D107: 414 | E107: RNS$1MT | F107: ANYTIME - NON PAYMENT | G107: 73.39823728 | H107: 75.48015159 | I107: Subject to Schedule 8
A108: 0 | B108: Retailer or metering coordinator/provider requests a visual examination upon re-energisation (physical or remote performed by either party) of the customer’s premises. | C108: Price Cap Sch 8 | D108: 224 | E108: RNV1MB | F108: BUSINESS HOURS - NO CT | G108: 0 | H108: 0 | I108: Subject to Schedule 8
A109: 0 | B109: 0 | C109: Price Cap Sch 8 | D109: 228 | E109: RNV1MA | F109: AFTER HOURS - NO CT | G109: 112.8595448 | H109: 116.0607647 | I109: Subject to Schedule 8
A110: 0 | B110: 0 | C110: Price Cap Sch 8 | D110: 232 | E110: RNV1MT | F110: ANYTIME - NO CT | G110: 112.8595448 | H110: 116.0607647 | I110: Subject to Schedule 8
A111: 0 | B111: 0 | C111: Price Cap Sch 8 | D111: 226 | E111: RNV2MB | F111: BUSINESS HOURS - CT | G111: 0 | H111: 0 | I111: Subject to Schedule 8
A112: 0 | B112: 0 | C112: Price Cap Sch 8 | D112: 230 | E112: RNV2MA | F112: AFTER HOURS - CT | G112: 112.8595448 | H112: 116.0607647 | I112: Subject to Schedule 8
A113: 0 | B113: 0 | C113: Price Cap Sch 8 | D113: 234 | E113: RNV2MT | F113: ANYTIME - CT | G113: 112.8595448 | H113: 116.0607647 | I113: Subject to Schedule 8
A114: 0 | B114: Retailer or metering coordinator/provider requests a visual examination upon re-energisation (physical or remote performed by either party) of the customer’s premises where the customer has not paid their electricity account. NMI de-energised > 30 days. | C114: Price Cap Sch 8 | D114: 212 | E114: RN$V1MB | F114: BUSINESS HOURS - NO CT | G114: 46.81345324 | H114: 48.14129982 | I114: Subject to Schedule 8
A115: 0 | B115: 0 | C115: Price Cap Sch 8 | D115: 216 | E115: RN$V1MA | F115: AFTER HOURS - NO CT | G115: 112.8595448 | H115: 116.0607647 | I115: Subject to Schedule 8
A116: 0 | B116: 0 | C116: Price Cap Sch 8 | D116: 220 | E116: RN$V1MT | F116: ANYTIME - NO CT | G116: 112.8595448 | H116: 116.0607647 | I116: Subject to Schedule 8
A117: 0 | B117: 0 | C117: Price Cap Sch 8 | D117: 214 | E117: RN$V2MB | F117: BUSINESS HOURS - CT | G117: 46.81345324 | H117: 48.14129982 | I117: Subject to Schedule 8
A118: 0 | B118: 0 | C118: Price Cap Sch 8 | D118: 218 | E118: RN$V2MA | F118: AFTER HOURS - CT | G118: 112.8595448 | H118: 116.0607647 | I118: Subject to Schedule 8
A119: 0 | B119: 0 | C119: Price Cap Sch 8 | D119: 222 | E119: RN$V2MT | F119: ANYTIME - CT | G119: 112.8595448 | H119: 116.0607647 | I119: Subject to Schedule 8
A120: Readings provided for an active site | B120: Reading provided for an active site. | C120: Price Cap | D120: 238 | E120: RNNR | F120: RETAIL REQUESTED FIELDWORK | G120: 10.24782328 | H120: 10.53849906
C121: Price Cap | D121: 240 | E121: RNRM | F121: RETROSPECTIVE MOVE IN READ | G121: 10.24782328 | H121: 10.53849906
A122: Attending loss of supply (customer at fault) | B122: EGX attending LV customers trouble call and found fault in LV customers installation/Non Energex Metering (includes tripped safety switch, internal fault, customers overload). | C122: Price Cap | D122: 1500 | E122: LOS | F122: BUSINESS HOURS - Customer | G122: 236.028523 | H122: 242.7233862
C123: Price Cap | D123: 1501 | E123: LOSMC | F123: BUSINESS HOURS - Metering Provider | G123: 236.028523 | H123: 242.7233862
A124: 0 | B124: 0 | C124: Price Cap | D124: 1602 | E124: LOST | F124: AFTER HOURS - Customer | G124: 336.8124764 | H124: 346.3660398
C125: Price Cap | D125: 1603 | E125: LOSTMC | F125: AFTER HOURS - Metering Provider | G125: 336.8124764 | H125: 346.3660398
C126: Price Cap | D126: 1600 | E126: LOSA | F126: ANYTIME - Customer | G126: 336.8124764 | H126: 346.3660398
A127: 0 | B127: 0 | C127: Price Cap | D127: 1601 | E127: LOSAMC | F127: ANYTIME - Metering Provider | G127: 336.8124764 | H127: 346.3660398
A128: Accreditation / Certification
A129: Accreditation of Design Consultants Applicant requests to obtain Energex accreditation to provide design services for real estate development (sub-division), Rate 2 public lighting, LCC & distribution works that are reticulated with Energex network (design accreditation) | B129: DESKTOP MANAGEMENT SYSTEM EVALUATION. | C129: Price Cap | D129: Charged Directly to Customer | F129: ISO9001 ACCREDITATION | G129: 10982.58605 | H129: =G129*(1+$I$4) -> 11294.10311
A130: 0 | B130: 0 | C130: Price Cap | D130: Charged Directly to Customer | F130: NO ISO9001 ACCREDITATION | G130: 12798.95625 | H130: 13161.99399
A131: 0 | B131: 0 | C131: Price Cap | D131: Charged Directly to Customer | F131: DESIGN SERVICE (RATE 2) ACCREDITATION | G131: 7504.805468 | H131: 7717.676546
A132: 0 | B132: ONSITE MANAGEMENT SYSTEM EVALUATION (irrespective of prior accreditations). | C132: Price Cap | D132: Charged Directly to Customer | G132: 726.5583485 | H132: 747.1669119
A133: 0 | B133: CAPABILITY EVALUATION (irrespective of prior accreditations). | C133: Price Cap | D133: Charged Directly to Customer | G133: 695.5581697 | H133: 715.2874242
A134: Accreditation of Alternative Service Providers Applicant requests to obtain Energex Accreditation to provide construction services for real estate development (sub-division) works that are reticulated with Energex network (Construction Accreditation) | B134: DESKTOP MANAGEMENT SYSTEM EVALUATION | C134: Price Cap | D134: Charged Directly to Customer | F134: ISO9001/AS4801/ISO14001 ACCREDITATION | G134: 5356.151138 | H134: 5508.076417
A135: 0 | B135: 0 | C135: Price Cap | D135: Charged Directly to Customer | F135: NO ISO9001/AS4801/ISO14001 ACCREDITATION | G135: 10047.73402 | H135: 10332.73434
A136: 0 | B136: 0 | C136: Price Cap | D136: Charged Directly to Customer | F136: ADDITIONAL EGX ACCREDITATIONS WITH OR WITHOUT ISO9001/AS4801/ISO14001 | G136: 5356.151138 | H136: 5508.076417
A137: 0 | B137: ONSITE MANAGEMENT SYSTEM EVALUATION (irrespective of prior accreditations). | C137: Price Cap | D137: Charged Directly to Customer | G137: 1453.09616 | H137: 1494.312705
A138: 0 | B138: CAPABILITY EVALUATION (irrespective of prior accreditations). | C138: Price Cap | D138: Charged Directly to Customer | G138: 1422.10625 | H138: 1462.443776
A139: Management System Re-Evaluation | B139: Quality assessment (QA) process: This is conducted on request form existing service providers and design consultants with the intent to improve their management system score. | C139: Price Cap | D139: Charged Directly to Customer | G139: 7265.521875 | H139: 7471.605761
A140: Shared Assets Authority | B140: High Level quality assessment (QA) and capability process: This is conducted to ensure the applicant has adequate Safety and QA documentation to meet Legislative and Energex WCS Requirements. Also involves a capability assessment of the applicant's ability to conduct the work. | C140: Price Cap | D140: Charged Directly to Customer | G140: 5449.141406 | H140: 5603.704321
A141: Auxiliary Metering Servies
A142: Meter Installations
A143: Meter Maintenance | B143: Remove Meter - After hours provision of service (incremental costs only). | C143: Price Cap | D143: 536 | E143: AARM1AH | F143: AFTER HOURS METER REMOVAL - NO CT | G143: 55.72638972 | H143: =G143*(1+$I$4) -> 57.3070485
A144: 0 | B144: 0 | C144: Price Cap | D144: 537 | E144: AARMCTAH | F144: AFTER HOURS METER REMOVAL - CT | G144: 177.6939698 | H144: 182.7341946
A145: 0 | B145: Customer requested meter accuracy testing of type 5-6 meter (physically test meter). | C145: Price Cap Sch 8 | D145: 704 | E145: MIMT1MB | F145: BUSINESS HOURS - NO CT | G145: 18.62680504 | H145: 19.15514759 | I145: Subject to Schedule 8
A146: 0 | B146: 0 | C146: Price Cap Sch 8 | D146: 706 | E146: MIMT2MB | F146: BUSINESS HOURS - CT | G146: 18.62680504 | H146: 19.15514759 | I146: Subject to Schedule 8
A147: 0 | B147: Customer requested meter inspection & investigation (no physical testing of meter) no fault in meter found. | C147: Price Cap | D147: 957 | E147: MSINSS | F147: BUSINESS HOURS - NO CT | G147: 96.0605078 | H147: 98.78522917
A148: 0 | B148: 0 | C148: Price Cap | D148: 965 | E148: MCINSSA | F148: AFTER HOURS - NO CT | G148: 173.3196484 | H148: 178.2357972
A149: 0 | B149: 0 | C149: Price Cap | D149: 967 | E149: MCINSST | F149: ANYTIME - NO CT | G149: 173.3196484 | H149: 178.2357972
A150: 0 | B150: 0 | C150: Price Cap | D150: 959 | E150: MSINSC | F150: BUSINESS HOURS - CT | G150: 346.6392969 | H150: 356.4715945
A151: 0 | B151: 0 | C151: Price Cap | D151: 969 | E151: MCINSCA | F151: AFTER HOURS - CT | G151: 509.567365 | H151: 524.021058
A152: 0 | B152: 0 | C152: Price Cap | D152: 971 | E152: MCINSCT | F152: ANYTIME - CT | G152: 509.567365 | H152: 524.021058
A153: 0 | B153: Customer Requested Meter Reconfiguration. | C153: Price Cap | D153: 1200 | E153: MRCL1M | F153: CONTROLLED LOAD - NO CT | G153: 97.97042276 | H153: 100.7493182
A154: 0 | B154: 0 | C154: Price Cap | D154: 1202 | E154: MRCL2M | F154: CONTROLLED LOAD - CT | G154: 451.0685181 | H154: 463.8629126
A155: 0 | B155: 0 | C155: Price Cap | D155: 1204 | E155: MRCT1M | F155: BUSINESS HOURS - CHANGE TARIFF - NO CT | G155: 97.97042276 | H155: 100.7493182
A156: 0 | B156: 0 | C156: Price Cap | D156: 1212 | E156: MRCT1MA | F156: AFTER HOURS - ONE TARIFF TO ANOTHER - NO CT | G156: 115.8065641 | H156: 119.0913752
A157: 0 | B157: 0 | C157: Price Cap | D157: 1220 | E157: MRCT1MT | F157: ANYTIME - ONE TARIFF TO ANOTHER - NO CT | G157: 115.8065641 | H157: 119.0913752
A158: 0 | B158: 0 | C158: Price Cap | D158: 1206 | E158: MRCT2M | F158: BUSINESS HOURS - CHANGE TARIFF - CT | G158: 451.0685181 | H158: 463.8629126
A159: 0 | B159: 0 | C159: Price Cap | D159: 1214 | E159: MRCT2MA | F159: AFTER HOURS - ONE TARIFF TO ANOTHER - CT | G159: 643.7029517 | H159: 661.9613518
A160: 0 | B160: 0 | C160: Price Cap | D160: 1222 | E160: MRCT2MT | F160: ANYTIME - MTr RECONFIG CHNG CTRL LOAD - CT | G160: 643.7029517 | H160: 661.9613518
A161: 0 | B161: 0 | C161: Price Cap | D161: 1201 | E161: MRRT1M | F161: Time of Use TRANSFER - NO CT | G161: 149.4765165 | H161: 153.7163636
A162: 0 | B162: 0 | C162: Price Cap | D162: 1203 | E162: MRRT2M | F162: Time of Use TRANSFER - CT | G162: 498.2824374 | H162: 512.4160375
A163: 0 | B163: 0 | C163: Price Cap | D163: 1205 | E163: MRRV1M | F163: Time of Use REVERSION | G163: 97.97042276 | H163: 100.7493182
A164: 0 | B164: Change Timeswitch. | C164: Price Cap | D164: 1208 | E164: MRCTS1M | F164: BUSINESS HOURS - NO CT | G164: 131.1269572 | H164: 134.8463257
A165: 0 | B165: 0 | C165: Price Cap | D165: 1210 | E165: MRCTS2M | F165: BUSINESS HOURS - CT | G165: 414.3591311 | H165: 426.1122772
B166: Integrity verification as a result of a meter alteration – meter is being relocated or meter wiring altered and requires DNSP to visit site to verify the integrity of the metering equipment (Move Meter). | C166: Price Cap | D166: 512 | E166: AAMM1M | F166: BUSINESS HOURS - NO CT | G166: 137.0107275 | H166: 140.8969869
B167: 0 | C167: Price Cap | D167: 513 | E167: AAMM1MAH | F167: AFTER HOURS - NO CT | G167: 195.9408455 | H167: 201.4986364
B168: 0 | C168: Price Cap | D168: 517 | E168: AAMM1MAT | F168: ANYTIME - NO CT | G168: 195.9408455 | H168: 201.4986364
B169: 0 | C169: Price Cap | D169: 514 | E169: AAMM2M | F169: BUSINESS HOURS - CT | G169: 849.049615 | H169: 873.1325985
B170: 0 | C170: Price Cap | D170: 515 | E170: AAMM2MAH | F170: AFTER HOURS - CT | G170: 1211.625407 | H170: 1245.992721
B171: 0 | C171: Price Cap | D171: 519 | E171: AAMM2MAT | F171: ANYTIME - CT | G171: 1211.625407 | H171: 1245.992721
A172: 0 | B172: Integrity verification as a result of a meter alteration – meter is being relocated or meter wiring altered and requires DNSP to visit site to verify the integrity of the metering equipment (Move Meter). | C172: Price Cap | D172: TBA | E172: TBA | F172: BUSINESS HOURS - NO CT (no travel) | G172: 113.3421577 | H172: 116.5570668
A173: 0 | B173: 0 | C173: Price Cap | D173: TBA | E173: TBA | F173: AFTER HOURS - NO CT (no travel) | G173: 161.7369384 | H173: 166.3245478
A174: 0 | B174: 0 | C174: Price Cap | D174: TBA | E174: TBA | F174: ANYTIME - NO CT (no travel) | G174: 161.7369384 | H174: 166.3245478
A175: 0 | B175: 0 | C175: Price Cap | D175: TBA | E175: TBA | F175: BUSINESS HOURS - CT (no travel) | G175: 712.6755258 | H175: 732.8903079
A176: 0 | B176: 0 | C176: Price Cap | D176: TBA | E176: TBA | F176: AFTER HOURS - CT (no travel) | G176: 1017.019448 | H176: 1045.866835
A177: 0 | B177: 0 | C177: Price Cap | D177: TBA | E177: TBA | F177: ANYTIME - CT (no travel) | G177: 1017.019448 | H177: 1045.866835
A178: Meter Reading | B178: Check Read | C178: Price Cap Sch 8 | D178: 400 | E178: SRCR | G178: 8.17361456 | H178: 8.405456165 | I178: Subject to Schedule 8
A179: 0 | B179: Final Read | C179: Price Cap Sch 8 | D179: 402 | E179: SRFR | G179: 8.17361456 | H179: 8.405456165 | I179: Subject to Schedule 8
A180: 0 | B180: Transfer Read | C180: Price Cap Sch 8 | D180: 404 | E180: SRTR | G180: 8.17361456 | H180: 8.405456165 | I180: Subject to Schedule 8
A181: Type 5-7 non standard metering data services | B181: A request to conduct a site review of the state of the customer’s metering installation(s) (no physical meter test), i.e. multiple premises. Includes provision of meter data above the minimum requirements and meter inspection to check a reported or suspected fault. Does not include provision of any hardware. | C181: Price Cap | D181: 955 | E181: MSINS | F181: BUSINESS HOURS - FIRST UNIT | G181: 136.9080439 | H181: 140.7913908
A182: 0 | B182: 0 | C182: Price Cap | D182: 961 | E182: MSINSA | F182: AFTER HOURS - FIRST UNIT | G182: 390.7419031 | H182: 401.8251551
A183: 0 | B183: 0 | C183: Price Cap | D183: 963 | E183: MSINST | F183: ANYTIME - FIRST UNIT | G183: 390.7419031 | H183: 401.8251551
A184: CT Metering | B184: Provision, installation, testing and maintenance of instrument transformers for metering purposes. | C184: Price Cap | D184: 539 | E184: CTP&T | G184: 1016.577908 | H184: 1045.412771
A185: 0 | B185: Testing and maintenance of instrument transformers for metering purposes. | C185: Price Cap | D185: 540 | E185: CTT&MT | G185: 186.1961719 | H185: 191.4775586
A186: Ancillary Network Services
A187: Other Recoverable Works
A188: Customer consultation or appointment. | B188: A visit to the customers premise to advise on electrical supply matters, could be for various reasons. | C188: Price Cap | D188: 952 | E188: MSAPWR | F188: Complex (customer requested) | G188: 236.028523 | H188: =G188*(1+$I$4) -> 242.7233862
C189: Price Cap | D189: 1074 | E189: MCMSAPWR | F189: Complex (third party requested) | G189: 236.028523 | H189: 242.7233862
C190: Price Cap | D190: 953 | E190: MSAPWRS | F190: Simple (customer requested) | G190: 107.5199976 | H190: 110.5697632
C191: Price Cap | D191: 1075 | E191: MCMSAPWRS | F191: Simple (third party requested) | G191: 107.5199976 | H191: 110.5697632
A192: Attendance at customers premises to perform a statutory right where access is prevented | B192: Energex attends a site at the customers request and is unable to perform job due to customers fault / fault of a third party. | C192: Price Cap | D192: 1044 | E192: MSWTV | F192: BUSINESS HOURS - TECHNICAL (customer at fault) | G192: 94.40730184 | H192: 97.08513063
C193: Price Cap | D193: 1069 | E193: MCMSWTV | F193: BUSINESS HOURS - TECHNICAL (third party at fault) | G193: 94.40730184 | H193: 97.08513063
A194: 0 | B194: 0 | C194: Price Cap | D194: 1050 | E194: MSWTV2CR | F194: BUSINESS HOURS - TECHNICAL (2 crew) (customer at fault) | G194: 188.8146037 | H194: 194.1702613
C195: Price Cap | D195: 1072 | E195: MCMSWTV2CR | F195: BUSINESS HOURS - TECHNICAL (2 crew) (third party at fault) | G195: 188.8146037 | H195: 194.1702613
C196: Price Cap | D196: 1045 | E196: MSWTVA | F196: AFTER HOURS - TECHNICAL (customer at fault) | G196: 134.7311516 | H196: 138.5527517
C197: Price Cap | D197: 1070 | E197: MCMSWTVA | F197: AFTER HOURS - TECHNICAL (third party at fault) | G197: 134.7311516 | H197: 138.5527517
A198: 0 | B198: 0 | C198: Price Cap | D198: 1051 | E198: MSWTV2CRAH | F198: AFTER HOURS - TECHNICAL (2 crew) (customer at fault) | G198: 269.4520348 | H198: 277.0949437
C199: Price Cap | D199: 1073 | E199: MCMS2MWTVA | F199: AFTER HOURS - TECHNICAL (2 crew) (third party at fault) | G199: 269.4520348 | H199: 277.0949437
C200: Price Cap | D200: 1047 | E200: MSWTVT | F200: ANYTIME - TECHNICAL (customer at fault) | G200: 134.7311516 | H200: 138.5527517
C201: Price Cap | D201: 1071 | E201: MCMSWTVT | F201: ANYTIME - TECHNICAL (third party at fault) | G201: 134.7311516 | H201: 138.5527517
... 13 more rows

Sheet Metering Service Charge 2018-20
A1: 2018-19 Metering Service Charge | F1: CPI | G1: ='Price capped services 2018- 20'!H3 -> 0.01909090909 | H1: Escalations
F2: X non-cap | G2: -0.02 | H2: =(1+G1)*(1-G2)-1 -> 0.03947272727
F3: x cap | G3: -0.01 | H3: =(1+G1)*(1-G3)-1 -> 0.02928181818
E4: Daily (cents) | F4: 2018-19 | G4: 2019-20
D5: Primary | E5: Non Capital | F5: 2.314 | G5: =F5*(1+H2) -> 2.405339891
E6: Capital | F6: 7.167 | G6: =F6*(1+H3) -> 7.376862791
D7: Load Control | E7: Non Capital | F7: 0.694 | G7: =F7*(1+H2) -> 0.7213940727
E8: Capital | F8: 2.15 | G8: =F8*(1+H3) -> 2.212955909
D9: Solar PV | E9: Non Capital | F9: 1.619 | G9: =F9*(1+H2) -> 1.682906345
E10: Capital | F10: 5.017 | G10: =F10*(1+H3) -> 5.163906882

Sheet Public Lighting 2018-20
A1: 2017-18 Street Light Utility Charges
C2: CPI | D2: ='Metering Service Charge 2018-20'!G1 -> 0.01909090909 | E2: Escalation
C3: X | D3: -0.0098 | E3: =(1+D2)*(1-D3)-1 -> 0.029078
A4: $/Day | B4: Category | C4: 2018-191 | D4: 2019-20
A5: Major Street Lights | B5: non-contributed | C5: 0.843 | D5: =C5*(1+$E$3) -> 0.867512754
B6: contributed | C6: 0.293 | D6: =C6*(1+$E$3) -> 0.301519854
A7: Minor Street Lights | B7: non-contributed | C7: 0.387 | D7: 0.398253186
B8: contributed | C8: 0.142 | D8: 0.146129076
A9: Notes: 1. All prices exclude GST.
